Cogmind - Beta 13 @@@ ROGUE MODE // 2024.02.28 @ 15:46:02 Player: Treadwheel Result: Destroyed by 2R-WW9(R) with Subdweller Machine Gun Performance ------------- Evolutions (0) 0 Regions Visited (2) 400 Robots Destroyed (23) 115 Value Destroyed (386) 386 Prototype IDs (0) 0 Alien Tech Used (0) 0 Bonus (0) 0 TOTAL SCORE: 901 Bonus ------- None Cogmind --------- Core Integrity 0/250 Matter 288/300 Energy 179/200 System Corruption 1% Temperature Cool (26) Movement Core (700) Ox13 Location -10/Subcaves Parts ------- > --- POWER (1) -------- Subdweller Power Source > --- PROPULSION (2) --- Subdweller Monowheel > --- UTILITY (2) ------ Large Storage Unit Subdweller Optics > --- WEAPON (2) ------- Beamcaster Subdweller Beam Cannon > --- INVENTORY (15) --- Light Ion Engine Light Treads Light Treads Spiked Treads Subdweller Monowheel Medium Storage Unit Sensor Array Signal Interpreter Makeshift Light Armor Plating Scrap Shield Grenade Launcher Scrap Shield Fragment (47) Peak State ------------ > --- POWER ------------ Subdweller Power Source > --- PROPULSION ------- Light Treads Subdweller Monowheel > --- UTILITY ---------- Large Storage Unit Subdweller Optics > --- WEAPON ----------- Beamcaster Subdweller Machine Gun > --- INVENTORY -------- Light Ion Engine Light Treads Light Treads Spiked Treads Subdweller Monowheel Subdweller Monowheel Medium Storage Unit Sensor Array Signal Interpreter Makeshift Light Armor Plating Scrap Shield Subdweller Beam Cannon Grenade Launcher Scrap Shield Fragment [Rating: 17] Favorites ----------- Power Ion Engine Engine Ion Engine Propulsion Light Treads Treads Light Treads Leg Aluminum Leg Wheel Compact Wheel Utility Large Storage Unit Device Terrain Scanner Storage Large Storage Unit Protection Core Shielding Weapon Light Assault Rifle Energy Gun Small Laser Energy Cannon Subdweller Beam Cannon Ballistic Gun Light Assault Rifle Build | -11 -10 -10 ------- Run | Yrd Mat Sub Slots Evolved . | . . . Power . | . . . Propulsion . | . . . Utility . | . . . Weapon . | . . . Parts Attached 28 | 4 15 9 Power 4 | . 3 1 Engine 4 | . 3 1 Core . | . . . Reactor . | . . . Propulsion 8 | 3 3 2 Treads 2 | 1 1 . Leg . | . . . Wheel 6 | 2 2 2 Hover . | . . . Flight . | . . . Utility 8 | 1 5 2 Device 4 | 1 2 1 Storage 1 | . 1 . Processor . | . . . Hackware . | . . . Protection 3 | . 2 1 Artifact . | . . . Weapon 8 | . 4 4 Energy Gun 4 | . 2 2 Energy Cannon 1 | . . 1 Ballistic Gun 3 | . 2 1 Ballistic Cannon . | . . . Launcher . | . . . Special Weapon . | . . . Impact Weapon . | . . . Slashing Weapon . | . . . Piercing Weapon . | . . . Special Melee Weapon . | . . . Unidentified Prototypes . | . . . Parts Lost 8 | . 4 4 Power 1 | . 1 . Propulsion 4 | . 2 2 Utility 1 | . 1 . Weapon 2 | . . 2 Highest Loss Streak 4 | . 2 4 To Critical Strikes . | . . . Average Slot Usage (%) 99 | . 98 99 Engine 13 | . 13 14 Treads 13 | . 13 13 Wheel 14 | . 14 14 Device 5 | . 6 5 Storage 14 | . 14 14 Protection 7 | . 7 8 Energy Gun 14 | . 13 14 Ballistic Gun 13 | . 14 12 Naked Turns . | . . . Heaviest Build 37 | 13 29 37 Greatest Support 20 | 16 16 20 Greatest Overweight (x) 2 | 1 2 2 Average Overweight (x) 1 | . 1 1 Largest Inventory Capacity 15 | 8 15 15 Average Capacity 14 | 8 14 15 Most Carried 15 | 8 15 15 Average Carried 12 | 6 12 14 Final Capacity 15 | 8 15 15 Final Carried 15 | 8 15 13 Class Distribution -------------------- 61% | Mutant 24% | Scavenger-Mutant 13% | Subdweller-Mutant Dominant Class ---------------- Mutant | -10/Materials Subdweller-Mutant | -10/Subcaves Resources | -11 -10 -10 ----------- Run | Yrd Mat Sub Matter Collected 533 | 246 163 124 Remotely . | . . . Salvage Created 690 | 82 461 147 Parts 47 | 5 36 6 Haulers Intercepted 2 | . 2 . Recyclers Shooed 1 | . 1 . Parts Field Recycled . | . . . Retrieved Matter . | . . . Parts Self-Destructed . | . . . Prevented . | . . . Kills | -11 -10 -10 ------- Run | Yrd Mat Sub Combat Hostiles Destroyed 16 | . 13 3 Guns 16 | . 13 3 Classes Destroyed 8 | 2 5 1 Worker 1 | . 1 . Tunneler 1 | 1 . . Hauler 2 | . 2 . Recycler 2 | 1 1 . Watcher 1 | . 1 . Swarmer 9 | . 9 . Grunt 4 | . 4 . Subdweller 3 | . . 3 Best Kill Streak 5 | 2 5 2 Combat Bots Only 5 | . 5 2 Max Kills in Single Turn 1 | 1 1 1 Gunslinging . | . . . Exploded . | . . . Melee . | . . . Uniques/NPCs Destroyed . | . . . Combat | -11 -10 -10 -------- Run | Yrd Mat Sub Hostile Shots Fired 127 | . 94 33 Missed 24 | . 18 6 Damage Taken 1290 | . 702 588 Core 252 | . 122 130 Absorbed by Shields . | . . . Redirected to Shielding 5 | . 5 . Core Remaining (%) 100 | 100 . . Volleys Fired 85 | 6 69 10 Largest 2 | 2 2 2 Hottest 155 | 60 60 155 Shots Fired 167 | 12 136 19 Gun 166 | 12 136 18 Cannon 1 | . . 1 Launcher . | . . . Special . | . . . Kinetic 83 | 6 69 8 Thermal 84 | 6 67 11 Explosive . | . . . Electromagnetic . | . . . Robot Hit Streak 7 | 6 7 6 Robot Miss Streak 4 | 2 4 3 Penetration Max . | . . . Secondary Targets 3 | . 3 . Max Gunslinging Chain 1 | . 1 . Shots Hit Robots 108 | 7 87 14 Core Hits 38 | 3 29 6 Critical Kills . | . . . Critical Parts Destroyed . | . . . Critical Strikes 1 | . . 1 Burn 1 | . . 1 Melee Attacks . | . . . Impact . | . . . Slashing . | . . . Piercing . | . . . Sneak Attacks . | . . . Combat Hostiles . | . . . Follow-up Attacks . | . . . Damage Inflicted 1149 | 71 813 265 Guns 1121 | 71 813 237 Cannons 28 | . . 28 Explosions . | . . . Melee . | . . . Ramming . | . . . Kinetic 475 | 26 343 106 Thermal 674 | 45 470 159 Explosive . | . . . Electromagnetic . | . . . Impact . | . . . Slashing . | . . . Piercing . | . . . Highest Corruption 1 | . 1 1 Average Corruption 1 | . 1 1 Corruption Purged . | . . . Corruption Blocked . | . . . Effects 5 | . 3 2 Message Errors 1 | . 1 . Matter Fused 1 | . . 1 Energy Discharges 2 | . 1 1 Data Loss (major) 1 | . 1 . Overload Shots . | . . . Overflow Damage . | . . . Projectiles . | . . . Explosions . | . . . Melee . | . . . Knockbacks . | . . . Impact . | . . . Kinetic . | . . . Secondary . | . . . Self-Inflicted Damage . | . . . Shots . | . . . Rammed . | . . . Targets Rammed . | . . . Kicked . | . . . Crushed . | . . . Highest Temperature 108 | 20 108 26 Average Temperature 24 | 15 25 9 Received Heat Transfer 240 | . 186 54 Siege Activations . | . . . Robots Corrupted . | . . . Combat Hostiles . | . . . Parts Fried . | . . . Impact Corruptions . | . . . Robots Melted . | . . . Combat Hostiles . | . . . Parts Melted . | . . . Heat Transferred 1521 | 100 1075 346 Parts Sabotaged . | . . . Parts Stolen . | . . . Parts Stripped . | . . . Power Chain Reactions . | . . . Alert | -11 -10 -10 ------- Run | Yrd Mat Sub Peak Influence 228 | 10 228 . Initial 6 | . 6 . Average 100 | 5 103 . Maximum Alert Level 1 | . 1 . Low Security (%) 89 | 100 89 . Level 1 10 | . 10 . Level 2 . | . . . Level 3 . | . . . Level 4 . | . . . Level 5 . | . . . High Security . | . . . Max Security . | . . . Squads Dispatched 3 | . 3 . Investigation 2 | . 2 . Extermination . | . . . Reinforcement 1 | . 1 . Assault . | . . . Garrison . | . . . Intercept . | . . . Searches Triggered . | . . . Construction Impeded . | . . . Haulers Reinforced . | . . . Active Scanning Responses . | . . . Cargo Convoy Interrupts . | . . . Stealth | -11 -10 -10 --------- Run | Yrd Mat Sub Distress Signals 1 | . 1 . Communications Jammed . | . . . Distress Signals . | . . . Times Spotted 38 | . 27 11 Peak Tracking Total 5 | . 5 5 Tactical Retreats 1 | . 1 . Traps | -11 -10 -10 ------- Run | Yrd Mat Sub Traps Triggered 2 | . 2 . Indirectly . | . . . Trap Hack Attempts . | . . . Triggered . | . . . Disarmed . | . . . Reprogrammed . | . . . Reused . | . . . Traps Extracted . | . . . Installed . | . . . Triggered . | . . . Machines | -11 -10 -10 ---------- Run | Yrd Mat Sub Machines Disabled . | . . . Max in Single Turn . | . . . Machines Repaired . | . . . Machines Dismantled . | . . . Machines Sabotaged . | . . . Overloaded Fab Kills . | . . . Hacking | -11 -10 -10 --------- Run | Yrd Mat Sub Machines Accessed 7 | . 7 . Terminals 5 | . 5 . Fabricators . | . . . Repair Stations 1 | . 1 . Recycling Units 1 | . 1 . Scanalyzers . | . . . Garrison Access . | . . . Total Hacks 16 | . 16 . Successful 5 | . 5 . Failed 11 | . 11 . Catastrophic 4 | . 4 . Database Lockouts . | . . . Manual 11 | . 11 . Terminals 13 | . 13 . Fabricators . | . . . Repair Stations 1 | . 1 . Recycling Units 2 | . 2 . Scanalyzers . | . . . Garrison Access . | . . . Terminal Hacks . | . . . Fabricator Hacks . | . . . Repair Station Hacks 1 | . 1 . Refit 1 | . 1 . Recycling Unit Hacks 1 | . 1 . Retrieve Components 1 | . 1 . Scanalyzer . | . . . Garrison Access Hacks . | . . . Unauthorized Hacks 3 | . 3 . Terminals 2 | . 2 . Botnet 1 | . 1 . Operators 1 | . 1 . Fabricators . | . . . Repair Stations . | . . . Recycling Units 1 | . 1 . Reject 1 | . 1 . Scanalyzers . | . . . Garrison Access . | . . . Data Cores Recovered . | . . . Used . | . . . Hacking Detections 6 | . 6 . Full Trace Events 1 | . 1 . Feedback Events . | . . . Feedback Blocked . | . . . Robot Schematics Acquired . | . . . Robots Built . | . . . Authchips . | . . . Time . | . . . Total Robot Build Rating . | . . . Part Schematics Acquired . | . . . Parts Built . | . . . Authchips . | . . . Time . | . . . Total Part Build Rating . | . . . Parts Repaired . | . . . Time . | . . . Parts Recycled . | . . . Recycled Matter . | . . . Retrieved Matter . | . . . Retrieved Components 9 | . 9 . Parts Scanalyzed . | . . . Part Schematics Acquired . | . . . Parts Damaged . | . . . Bothacking | -11 -10 -10 ------------ Run | Yrd Mat Sub Used RIF Installer . | . . . Robots Hacked . | . . . Non-combat . | . . . Combat . | . . . Robot Hacks Applied . | . . . Relay Couplers Released . | . . . Fabnet Peak Effective % . | . . . Robots Rewired . | . . . Allies Hacked . | . . . Hacks Repelled . | . . . Allies | -11 -10 -10 -------- Run | Yrd Mat Sub Total Allies . | . . . Largest Group . | . . . Highest-Rated Group . | . . . Highest-Rated Ally . | . . . Total Orders . | . . . Ally Attacks . | . . . Total Damage . | . . . Kills . | . . . Allies Corrupted . | . . . Allies Melted . | . . . Intel | -11 -10 -10 ------- Run | Yrd Mat Sub Robot Analysis Total . | . . . Derelict Logs Recovered . | . . . Drone Launches . | . . . Drone Recoveries . | . . . Exploration | -11 -10 -10 ------------- Run | Yrd Mat Sub Turns Passed 1401 | 43 1125 233 Spaces Moved 837 | 19 694 124 Core . | . . . Treads . | . . . Legs . | . . . Wheels 837 | 19 694 124 Hover . | . . . Flight . | . . . Fastest Speed 95 | 95 100 115 Average Speed 114 | 97 113 122 Slowest Speed 130 | 100 115 130 Overloaded Moves . | . . . Propulsion Burnouts . | . . . Robots Hopped . | . . . Cave-ins Triggered . | . . . Exploration Rate (%) 32 | 3 82 11 Regions Visited 2 Branch Regions 1 Pre-discovered Areas . | . . . Known Exits Taken . | . . . Unknown Exits Taken 2 | 1 1 . Scrap Searched . | . . . Spaces Dug . | . . . Terrain Destroyed . | . . . Melee . | . . . Projectile . | . . . AOE . | . . . Terrain Rammed . | . . . Walls Destroyed . | . . . Machines Disabled . | . . . Actions | -11 -10 -10 --------- Run | Yrd Mat Sub Total 1135 | 30 914 191 Wait 135 | . 108 27 Move 835 | 18 693 124 Hop . | . . . Pick Up 23 | 2 13 8 Fast Attach 12 | 1 6 5 Attach 4 | . 2 2 Detach 1 | . 1 . Swap 12 | 3 7 2 Drop 28 | . 15 13 Fire 85 | 6 69 10 Melee . | . . . Ram . | . . . Kick . | . . . Crush . | . . . Escape Stasis . | . . . Rewire . | . . . Trap . | . . . Miscellaneous . | . . . Route ------- -11/Scrapyard -10/Materials (discovered 5 exits: [*Mat x2] / [*Min x2] / [*Sub]) -10/Subcaves (discovered 1 exit: [*Mat]) History --------- Turn | Location | Event 4 | -11/Scrapyard | Discovered new exit (range 3) 44 | -11/Scrapyard | Entered Materials 292 | -10/Materials | Discovered new exit (range 9) 508 | -10/Materials | Build established: Scavenger-Mutant 593 | -10/Materials | Discovered new exit (range 15) 755 | -10/Materials | Discovered new exit (range 3) 784 | -10/Materials | Discovered new exit (range 6) 844 | -10/Materials | Build established: Mutant 992 | -10/Materials | Discovered new exit (range 12) 1169 | -10/Materials | Entered Subcaves 1182 | -10/Subcaves | Discovered new exit (range 4) 1201 | -10/Subcaves | Core integrity fell below 50% 1223 | -10/Subcaves | Shifting Twisted Machinery released Sub. Beam Cannon 1234 | -10/Subcaves | Shifting Twisted Machinery released Mak. Light Armor Plating 1329 | -10/Subcaves | Ambushed by swarm of Subdwellers 1363 | -10/Subcaves | Core integrity fell below 20% 1381 | -10/Subcaves | Lost 3 allies 1402 | -10/Subcaves | Destroyed by 2R-WW9(R) with Subdweller Machine Gun Last Messages --------------- 01332_ XN-GIP(R) emerges from the Twisted Machinery. 01336_ A3-3W0(R) emerges from the Twisted Machinery. 01336_ 5B-M8J(g): "Sorry we're late! Had another grouchy Sub to deal with. Who's the new fellow?" 01336_ HV Slug penetrates Twisted Machinery. 01340_ System corrupted: Matter fused (-9). 01341_ Dropped Com. Wheel. 01343_ Acquired Sub. Monowheel. 01348_ 5B-M8J(g) suffers critical hit (Destroy). 01348_ 5B-M8J(g) destroyed. 01350_ 8K-11F(g) destroyed. 01352_ E6-GCO(R) destroyed. 01354_ XN-GIP(R) suffers critical hit (Burn). 01357_ OU-9M7(g) suffers critical hit (Destroy). 01360_ Sub. Laser destroyed. 01361_ Acquired Beamcaster. 01363_ Acquired 26 matter. 01367_ Sub. Monowheel destroyed. 01396_ Lgt. Treads destroyed. 01396_ Sub. Machine Gun destroyed. Map ----- +----------------------------------------------------+ | #"" ## ["# ###??????## "" ???????????????????? | | #######! "#??#??????### "" ????????????????????? | | ????###%*"#??????##?# #????????????????????? | | # #"# %[[###????# #?# ##???????????????????? | | " ! "##?## #??# ##??????????????????? | | """ "! "### #??# #??????????????????? | | # #"""" ## #????# " #??????????????????? | | #?#"""" "" #??????# " #??????????????????? | | ??## """ "" ###???##! "" #????##????????????? | | ???##" """ "" #####!!% |##??" #????????????? | | ????## """% " ## |%! ]%%#""""####?????????? | | ?????## "" " #" ! *= " """#?????????? | | ??????##"" " ## """" ""#?????????? | | ???????##"" "" ]% =#### %""""" ###?????????? | | ????????#"" "" # ## #??## """" #???????????? | | ??? "" ## #### ##???##"" " ?????????? | | ???? ?### ########??##"" """????????? | | ??????#? ?## ###"##???" ????????? | | ??????? #?# ## #??? ????????? | | ??????? ??#?#### #??? ???????? | | ???????? ????????## ##??? ??????? | | ???????????????????# #???? ???????? | | ???????????????????# #?????? ???????? | | ???????????????????# R##??????? ????????? | | ???????????????????# ##RR#????????## ?????????? | | ??????????????????# ###@ #?????????????????????? | | ????????????????? ## #?????????????????????? | | ??????????????? ## #?????????????????????? | | ?????????????# ## #?????????????????????? | | ???????????? #### #?????????????????????? | | ??????????# ##???## #?????????????????????? | | ?????????# ### ???????##?????????????????????? | | ????????? ??## ??????????????????????????????? | | ?????????# ????# ??????????????????????????????? | | ?????????# ????? ???????????????????????????????? | | ?????????? ?????? ???????????????????????????????? | | ????????????????? ???????????????????????????????? | | ?????????????????#???????????????????????????????? | | ?????????????????????????????????????????????????? | | ?????????????????????????????????????????????????? | | ?????????????????????????????????????????????????? | | ?????????????????????????????????????????????????? | | ?????????????????????????????????????????????????? | | ?????????????????????????????????????????????????? | | ?????????????????????????????????????????????????? | | ?????????????????????????????????????????????????? | | ?????????????????????????????????????????????????? | | ?????????????????????????????????????????????????? | | ?????????????????????????????????????????????????? | | ?????????????????????????????????????????????????? | +----------------------------------------------------+ Best States ------------- Heat Dissipation 25 Energy Generation 15 Energy Capacity 250 Matter Stores 300 Matter Capacity 300 Sight Range 21 Terrain Scan Range 14 Terrain Scan Density 10 Armor Coverage 100 Core Shielding 20 Evasion (%) 40 Recoil Reduction 1 Item Schematics ----------------- None Robot Schematics ------------------ None Fabricated ------------ Nothing Alien Tech Used ----------------- None Achievements -------------- None Challenges ------------ None Game ------ Seed FieldInsulatedCycler Manual? 0 Play Time 00:23:42 Cumulative 43.2 hours Start 2024.02.28 @ 15:17:17 End 2024.02.28 @ 15:46:02 Sessions 1 Manual Loads 0 Difficulty Rogue Special Mode None Game No. 23 Rogue 23 Adventurer 0 Explorer 0 Win Type - Total 1 Types 1/0/0/0/0/0/0/0/0 Lore% 26 Gallery% 42 Achievement% 34 Wizard Run 0 Options --------- Layout 0 ASCII 0 Keyboard 0 Movement Numpad Keybinds 0 Fullscreen 1 Font 12/Smallcaps Map View 83x54 Zoom Use 0% Tactical HUD 1 Map Filters NONE Filters NONE Steam 1 RUN: 75351939-b7ec-4588-b21d-ae8cd2ed4cdc